Workbook

Sheet Temps
C2: Longueur | D2: Nbr par coté (left ou right) | E2: Temps
C3: 1000 | D3: 1 | E3: 0.205
C4: 1000 | D4: 2 | E4: 0.357
C5: 1000 | D5: 3 | E5: 0.508
C6: 1000 | D6: 4 | E6: 0.66
C7: 1000 | D7: 5 | E7: 0.811
C8: 1000 | D8: 6 | E8: 0.963
C9: 1000 | D9: 7 | E9: 1.114
C10: 1000 | D10: 8 | E10: 1.266
C11: 1000 | D11: 9 | E11: 1.417
C12: 1000 | D12: 10 | E12: 1.569
C13: 1000 | D13: 11 | E13: 1.72
C14: 1000 | D14: 12 | E14: 1.872
C15: 1001 | D15: 1 | E15: 0.208
C16: 1002 | D16: 1 | E16: 0.208
C17: 1003 | D17: 1 | E17: 0.208
C18: 1004 | D18: 1 | E18: 0.208
C19: 1005 | D19: 1 | E19: 0.208
C20: 1006 | D20: 1 | E20: 0.208
C21: 1007 | D21: 1 | E21: 0.208
C22: 1008 | D22: 1 | E22: 0.208
C23: 1009 | D23: 1 | E23: 0.208
C24: 1010 | D24: 1 | E24: 0.208
C25: 1011 | D25: 1 | E25: 0.208
C26: 1012 | D26: 1 | E26: 0.208
C27: 1013 | D27: 1 | E27: 0.208
C28: 1014 | D28: 1 | E28: 0.208
C29: 1015 | D29: 1 | E29: 0.208
C30: 1016 | D30: 1 | E30: 0.208
C31: 1017 | D31: 1 | E31: 0.208
C32: 1018 | D32: 1 | E32: 0.208
C33: 1019 | D33: 1 | E33: 0.208
C34: 1020 | D34: 1 | E34: 0.208
C35: 1021 | D35: 1 | E35: 0.208
C36: 1022 | D36: 1 | E36: 0.208
C37: 1023 | D37: 1 | E37: 0.208
C38: 1024 | D38: 1 | E38: 0.208
C39: 1025 | D39: 1 | E39: 0.208
C40: 1026 | D40: 1 | E40: 0.208
C41: 1027 | D41: 1 | E41: 0.208
C42: 1028 | D42: 1 | E42: 0.208
C43: 1029 | D43: 1 | E43: 0.208
C44: 1030 | D44: 1 | E44: 0.208
C45: 1031 | D45: 1 | E45: 0.208
C46: 1032 | D46: 1 | E46: 0.208
C47: 1033 | D47: 1 | E47: 0.208
C48: 1034 | D48: 1 | E48: 0.208
C49: 1035 | D49: 1 | E49: 0.208
C50: 1036 | D50: 1 | E50: 0.208
C51: 1037 | D51: 1 | E51: 0.208
C52: 1038 | D52: 1 | E52: 0.208
C53: 1039 | D53: 1 | E53: 0.208
C54: 1040 | D54: 1 | E54: 0.208
C55: 1041 | D55: 1 | E55: 0.208
C56: 1042 | D56: 1 | E56: 0.208
C57: 1043 | D57: 1 | E57: 0.208
C58: 1044 | D58: 1 | E58: 0.208
C59: 1045 | D59: 1 | E59: 0.208
C60: 1046 | D60: 1 | E60: 0.208
C61: 1047 | D61: 1 | E61: 0.208
C62: 1048 | D62: 1 | E62: 0.208
C63: 1049 | D63: 1 | E63: 0.208
C64: 1050 | D64: 1 | E64: 0.208
C65: 1051 | D65: 1 | E65: 0.208
C66: 1052 | D66: 1 | E66: 0.208
C67: 1053 | D67: 1 | E67: 0.208
C68: 1054 | D68: 1 | E68: 0.208
C69: 1055 | D69: 1 | E69: 0.208
C70: 1056 | D70: 1 | E70: 0.208
C71: 1057 | D71: 1 | E71: 0.208
C72: 1058 | D72: 1 | E72: 0.208
C73: 1059 | D73: 1 | E73: 0.208
C74: 1060 | D74: 1 | E74: 0.208
C75: 1061 | D75: 1 | E75: 0.208
C76: 1062 | D76: 1 | E76: 0.208
C77: 1063 | D77: 1 | E77: 0.208
C78: 1064 | D78: 1 | E78: 0.208
C79: 1065 | D79: 1 | E79: 0.208
C80: 1066 | D80: 1 | E80: 0.208
C81: 1067 | D81: 1 | E81: 0.208
C82: 1068 | D82: 1 | E82: 0.208
C83: 1069 | D83: 1 | E83: 0.208
C84: 1070 | D84: 1 | E84: 0.208
C85: 1071 | D85: 1 | E85: 0.208
C86: 1072 | D86: 1 | E86: 0.208
C87: 1073 | D87: 1 | E87: 0.208
C88: 1074 | D88: 1 | E88: 0.208
C89: 1075 | D89: 1 | E89: 0.208
C90: 1076 | D90: 1 | E90: 0.208
C91: 1077 | D91: 1 | E91: 0.208
C92: 1078 | D92: 1 | E92: 0.208
C93: 1079 | D93: 1 | E93: 0.208
C94: 1080 | D94: 1 | E94: 0.208
C95: 1081 | D95: 1 | E95: 0.208
C96: 1082 | D96: 1 | E96: 0.208
C97: 1083 | D97: 1 | E97: 0.208
C98: 1084 | D98: 1 | E98: 0.208
C99: 1085 | D99: 1 | E99: 0.208
C100: 1086 | D100: 1 | E100: 0.208
C101: 1087 | D101: 1 | E101: 0.208
C102: 1088 | D102: 1 | E102: 0.208
C103: 1089 | D103: 1 | E103: 0.208
C104: 1090 | D104: 1 | E104: 0.208
C105: 1091 | D105: 1 | E105: 0.208
C106: 1092 | D106: 1 | E106: 0.208
C107: 1093 | D107: 1 | E107: 0.208
C108: 1094 | D108: 1 | E108: 0.208
C109: 1095 | D109: 1 | E109: 0.208
C110: 1096 | D110: 1 | E110: 0.208
C111: 1097 | D111: 1 | E111: 0.208
C112: 1098 | D112: 1 | E112: 0.208
C113: 1099 | D113: 1 | E113: 0.208
C114: 1100 | D114: 1 | E114: 0.208
C115: 1101 | D115: 1 | E115: 0.208
C116: 1102 | D116: 1 | E116: 0.208
C117: 1103 | D117: 1 | E117: 0.208
C118: 1104 | D118: 1 | E118: 0.208
C119: 1105 | D119: 1 | E119: 0.208
C120: 1106 | D120: 1 | E120: 0.208
C121: 1107 | D121: 1 | E121: 0.208
C122: 1108 | D122: 1 | E122: 0.208
C123: 1109 | D123: 1 | E123: 0.208
C124: 1110 | D124: 1 | E124: 0.208
C125: 1111 | D125: 1 | E125: 0.208
C126: 1112 | D126: 1 | E126: 0.208
C127: 1113 | D127: 1 | E127: 0.208
C128: 1114 | D128: 1 | E128: 0.208
C129: 1115 | D129: 1 | E129: 0.208
C130: 1116 | D130: 1 | E130: 0.208
C131: 1117 | D131: 1 | E131: 0.208
C132: 1118 | D132: 1 | E132: 0.208
C133: 1119 | D133: 1 | E133: 0.208
C134: 1120 | D134: 1 | E134: 0.208
C135: 1121 | D135: 1 | E135: 0.208
C136: 1122 | D136: 1 | E136: 0.208
C137: 1123 | D137: 1 | E137: 0.208
C138: 1124 | D138: 1 | E138: 0.208
C139: 1125 | D139: 1 | E139: 0.208
C140: 1126 | D140: 1 | E140: 0.208
C141: 1127 | D141: 1 | E141: 0.208
C142: 1128 | D142: 1 | E142: 0.208
C143: 1129 | D143: 1 | E143: 0.208
C144: 1130 | D144: 1 | E144: 0.208
C145: 1131 | D145: 1 | E145: 0.208
C146: 1132 | D146: 1 | E146: 0.208
C147: 1133 | D147: 1 | E147: 0.208
C148: 1134 | D148: 1 | E148: 0.208
C149: 1135 | D149: 1 | E149: 0.208
C150: 1136 | D150: 1 | E150: 0.208
C151: 1137 | D151: 1 | E151: 0.208
C152: 1138 | D152: 1 | E152: 0.208
C153: 1139 | D153: 1 | E153: 0.208
C154: 1140 | D154: 1 | E154: 0.208
C155: 1141 | D155: 1 | E155: 0.208
C156: 1142 | D156: 1 | E156: 0.208
C157: 1143 | D157: 1 | E157: 0.208
C158: 1144 | D158: 1 | E158: 0.208
C159: 1145 | D159: 1 | E159: 0.208
C160: 1146 | D160: 1 | E160: 0.208
C161: 1147 | D161: 1 | E161: 0.208
C162: 1148 | D162: 1 | E162: 0.208
C163: 1149 | D163: 1 | E163: 0.208
C164: 1150 | D164: 1 | E164: 0.208
C165: 1151 | D165: 1 | E165: 0.208
C166: 1152 | D166: 1 | E166: 0.208
C167: 1153 | D167: 1 | E167: 0.208
C168: 1154 | D168: 1 | E168: 0.208
C169: 1155 | D169: 1 | E169: 0.208
C170: 1156 | D170: 1 | E170: 0.208
C171: 1157 | D171: 1 | E171: 0.208
C172: 1158 | D172: 1 | E172: 0.208
C173: 1159 | D173: 1 | E173: 0.208
C174: 1160 | D174: 1 | E174: 0.208
C175: 1161 | D175: 1 | E175: 0.208
C176: 1162 | D176: 1 | E176: 0.208
C177: 1163 | D177: 1 | E177: 0.208
C178: 1164 | D178: 1 | E178: 0.208
C179: 1165 | D179: 1 | E179: 0.208
C180: 1166 | D180: 1 | E180: 0.208
C181: 1167 | D181: 1 | E181: 0.208
C182: 1168 | D182: 1 | E182: 0.208
C183: 1169 | D183: 1 | E183: 0.208
C184: 1170 | D184: 1 | E184: 0.208
C185: 1171 | D185: 1 | E185: 0.208
C186: 1172 | D186: 1 | E186: 0.208
C187: 1173 | D187: 1 | E187: 0.208
C188: 1174 | D188: 1 | E188: 0.208
C189: 1175 | D189: 1 | E189: 0.208
C190: 1176 | D190: 1 | E190: 0.208
C191: 1177 | D191: 1 | E191: 0.208
C192: 1178 | D192: 1 | E192: 0.208
C193: 1179 | D193: 1 | E193: 0.208
C194: 1180 | D194: 1 | E194: 0.208
C195: 1181 | D195: 1 | E195: 0.208
C196: 1182 | D196: 1 | E196: 0.208
C197: 1183 | D197: 1 | E197: 0.208
C198: 1184 | D198: 1 | E198: 0.208
C199: 1185 | D199: 1 | E199: 0.208
C200: 1186 | D200: 1 | E200: 0.208
C201: 1187 | D201: 1 | E201: 0.208
... 4299 more rows

Sheet Fichier
A1: Ref | B1: Direction | C1: longueur
A2: 587300LTL4140 | B2: L | C2: 3300
A3: 587300LTL4140 | B3: L | C3: 6400
A4: 587300LTL4140 | B4: R | C4: 7700
A5: 587300LTL4140 | B5: R | C5: 7800
A6: 587300LTL4140 | B6: R | C6: 12100
A7: 587300LTL4141 | B7: L | C7: 3300
A8: 587300LTL4141 | B8: L | C8: 6400
A9: 587300LTL4141 | B9: L | C9: 6400
A10: 587300LTL4141 | B10: L | C10: 11700
A11: 587300LTL4141 | B11: R | C11: 7400
A12: 587300LTL4141 | B12: R | C12: 7700
A13: 587300LTL4142 | B13: L | C13: 7400
A14: 587300LTL4142 | B14: L | C14: 7700
A15: 587300LTL4142 | B15: L | C15: 11700
A16: 587300LTL4142 | B16: R | C16: 3300
A17: 587300LTL4142 | B17: R | C17: 6400
A18: 587300LTL4142 | B18: R | C18: 6400
A19: 587300LTL4143 | B19: L | C19: 7400
A20: 587300LTL4143 | B20: L | C20: 7700
A21: 587300LTL4143 | B21: L | C21: 11700
A22: 587300LTL4143 | B22: R | C22: 3300
A23: 587300LTL4143 | B23: R | C23: 6400
A24: 587300LTL4143 | B24: R | C24: 6400
A25: 587300LTL4143 | B25: R | C25: 7400
A26: 587300LTL4143 | B26: R | C26: 7700
A27: 587300SMK2121 | B27: L | C27: 200
A28: 587300SMK2121 | B28: R | C28: 1240
A29: 587300SMK2121 | B29: R | C29: 1490
A30: 587300SMK2122 | B30: L | C30: 200
A31: 587300SMK2122 | B31: R | C31: 1240
A32: 587300SMK2122 | B32: R | C32: 1490
A33: 587300SMK2123 | B33: L | C33: 200
A34: 587300SMK2123 | B34: R | C34: 1240
A35: 587300SMK2123 | B35: R | C35: 1490
A36: 587300SMK5109 | B36: L | C36: 240
A37: 587300SMK5109 | B37: R | C37: 1740
A38: 587300SMK5109 | B38: R | C38: 1960
A39: 587305VMK2133 | B39: L | C39: 160
A40: 587305VMK2133 | B40: R | C40: 1290
A41: 587305VMK2133 | B41: R | C41: 1740
A42: 587305VMK2134 | B42: L | C42: 160
A43: 587305VMK2134 | B43: R | C43: 1290
A44: 587305VMK2134 | B44: R | C44: 1490
A45: 587305VMK2134 | B45: R | C45: 1740
A46: 587305VMK2135 | B46: L | C46: 160
A47: 587305VMK2135 | B47: R | C47: 1290
A48: 587305VMK2135 | B48: R | C48: 1490
A49: 587305VMK2136 | B49: L | C49: 160
A50: 587305VMK2136 | B50: R | C50: 1290
A51: 587305VMK2136 | B51: R | C51: 2960
A52: 587305VMK2137 | B52: L | C52: 160
A53: 587305VMK2137 | B53: L | C53: 2500
A54: 587305VMK2137 | B54: R | C54: 1290
A55: 587305VMK2137 | B55: R | C55: 1490
A56: 587305VMK2137 | B56: R | C56: 2960
A57: 587305VMK2137 | B57: R | C57: 2960
A58: 587305VMK2137 | B58: R | C58: 1490
A59: 5873087AM5106 | B59: L | C59: 280
A60: 5873087AM5106 | B60: L | C60: 280
A61: 5873087AM5106 | B61: L | C61: 280
A62: 5873087AM5106 | B62: R | C62: 1240
A63: 5873087AM5107 | B63: L | C63: 280
A64: 5873087AM5107 | B64: L | C64: 280
A65: 5873087AM5107 | B65: R | C65: 1240

Sheet Demande
A1: Ref | B1: Nb L | C1: Max L | D1: NB R | E1: Max R | F1: Temps coté L | G1: Temps coté R
A2: 587300LTL4140 | B2: =COUNTIFS(Fichier!$A$1:$A$65,$A2,Fichier!$B$1:$B$65,"L") -> 2 | C2: =MAX(IF((Fichier!$A$1:$A$65=$A2)*(Fichier!$B$1:$B$65="L"),Fichier!$C$1:$C$65,"")) -> 6400 | D2: =COUNTIFS(Fichier!$A$1:$A$65,$A2,Fichier!$B$1:$B$65,"R") -> 3 | E2: =MAX(IF((Fichier!$A$1:$A$65=$A2)*(Fichier!$B$1:$B$65="R"),Fichier!$C$1:$C$65,"")) -> 12100 | F2: =SUMPRODUCT((Temps!$C$1:$C$170014=$C2)*(Temps!$D$1:$D$170014=$B2),(Temps!$E$1:$E$170014)) -> 0.651 | G2: =SUMPRODUCT((Temps!$C$1:$C$170014=$E2)*(Temps!$D$1:$D$170014=$D2),(Temps!$E$1:$E$170014)) -> 2.608 | J2: les temps doivent calculé automatiquement pour chaque reference : le temps de coté L = maximum longueur par coté L avec leur nbr . le temps de coté R = maximum longueur par coté L avec leur nbr .
A3: 587300LTL4141 | B3: =COUNTIFS(Fichier!$A$1:$A$65,$A3,Fichier!$B$1:$B$65,"L") -> 4 | C3: =MAX(IF((Fichier!$A$1:$A$65=$A3)*(Fichier!$B$1:$B$65="L"),Fichier!$C$1:$C$65,"")) -> 11700 | D3: =COUNTIFS(Fichier!$A$1:$A$65,$A3,Fichier!$B$1:$B$65,"R") -> 2 | E3: =MAX(IF((Fichier!$A$1:$A$65=$A3)*(Fichier!$B$1:$B$65="R"),Fichier!$C$1:$C$65,"")) -> 7700 | F3: =SUMPRODUCT((Temps!$C$1:$C$170014=$C3)*(Temps!$D$1:$D$170014=$B3),(Temps!$E$1:$E$170014)) -> 2.518 | G3: =SUMPRODUCT((Temps!$C$1:$C$170014=$E3)*(Temps!$D$1:$D$170014=$D3),(Temps!$E$1:$E$170014)) -> 0.906
A4: 587300LTL4142 | B4: =COUNTIFS(Fichier!$A$1:$A$65,$A4,Fichier!$B$1:$B$65,"L") -> 3 | C4: =MAX(IF((Fichier!$A$1:$A$65=$A4)*(Fichier!$B$1:$B$65="L"),Fichier!$C$1:$C$65,"")) -> 11700 | D4: =COUNTIFS(Fichier!$A$1:$A$65,$A4,Fichier!$B$1:$B$65,"R") -> 3 | E4: =MAX(IF((Fichier!$A$1:$A$65=$A4)*(Fichier!$B$1:$B$65="R"),Fichier!$C$1:$C$65,"")) -> 6400 | F4: =SUMPRODUCT((Temps!$C$1:$C$170014=$C4)*(Temps!$D$1:$D$170014=$B4),(Temps!$E$1:$E$170014)) -> 2.366 | G4: =SUMPRODUCT((Temps!$C$1:$C$170014=$E4)*(Temps!$D$1:$D$170014=$D4),(Temps!$E$1:$E$170014)) -> 0.803
A5: 587300LTL4143 | B5: =COUNTIFS(Fichier!$A$1:$A$65,$A5,Fichier!$B$1:$B$65,"L") -> 3 | C5: =MAX(IF((Fichier!$A$1:$A$65=$A5)*(Fichier!$B$1:$B$65="L"),Fichier!$C$1:$C$65,"")) -> 11700 | D5: =COUNTIFS(Fichier!$A$1:$A$65,$A5,Fichier!$B$1:$B$65,"R") -> 5 | E5: =MAX(IF((Fichier!$A$1:$A$65=$A5)*(Fichier!$B$1:$B$65="R"),Fichier!$C$1:$C$65,"")) -> 7700 | F5: =SUMPRODUCT((Temps!$C$1:$C$170014=$C5)*(Temps!$D$1:$D$170014=$B5),(Temps!$E$1:$E$170014)) -> 2.366 | G5: =SUMPRODUCT((Temps!$C$1:$C$170014=$E5)*(Temps!$D$1:$D$170014=$D5),(Temps!$E$1:$E$170014)) -> 1.361
A6: 587300SMK2121 | B6: =COUNTIFS(Fichier!$A$1:$A$65,$A6,Fichier!$B$1:$B$65,"L") -> 1 | C6: =MAX(IF((Fichier!$A$1:$A$65=$A6)*(Fichier!$B$1:$B$65="L"),Fichier!$C$1:$C$65,"")) -> 200 | D6: =COUNTIFS(Fichier!$A$1:$A$65,$A6,Fichier!$B$1:$B$65,"R") -> 2 | E6: =MAX(IF((Fichier!$A$1:$A$65=$A6)*(Fichier!$B$1:$B$65="R"),Fichier!$C$1:$C$65,"")) -> 1490 | F6: =SUMPRODUCT((Temps!$C$1:$C$170014=$C6)*(Temps!$D$1:$D$170014=$B6),(Temps!$E$1:$E$170014)) -> 0 | G6: =SUMPRODUCT((Temps!$C$1:$C$170014=$E6)*(Temps!$D$1:$D$170014=$D6),(Temps!$E$1:$E$170014)) -> 0.359
A7: 587300SMK2122 | B7: =COUNTIFS(Fichier!$A$1:$A$65,$A7,Fichier!$B$1:$B$65,"L") -> 1 | C7: =MAX(IF((Fichier!$A$1:$A$65=$A7)*(Fichier!$B$1:$B$65="L"),Fichier!$C$1:$C$65,"")) -> 200 | D7: =COUNTIFS(Fichier!$A$1:$A$65,$A7,Fichier!$B$1:$B$65,"R") -> 2 | E7: =MAX(IF((Fichier!$A$1:$A$65=$A7)*(Fichier!$B$1:$B$65="R"),Fichier!$C$1:$C$65,"")) -> 1490 | F7: =SUMPRODUCT((Temps!$C$1:$C$170014=$C7)*(Temps!$D$1:$D$170014=$B7),(Temps!$E$1:$E$170014)) -> 0 | G7: =SUMPRODUCT((Temps!$C$1:$C$170014=$E7)*(Temps!$D$1:$D$170014=$D7),(Temps!$E$1:$E$170014)) -> 0.359
A8: 587300SMK2123 | B8: =COUNTIFS(Fichier!$A$1:$A$65,$A8,Fichier!$B$1:$B$65,"L") -> 1 | C8: =MAX(IF((Fichier!$A$1:$A$65=$A8)*(Fichier!$B$1:$B$65="L"),Fichier!$C$1:$C$65,"")) -> 200 | D8: =COUNTIFS(Fichier!$A$1:$A$65,$A8,Fichier!$B$1:$B$65,"R") -> 2 | E8: =MAX(IF((Fichier!$A$1:$A$65=$A8)*(Fichier!$B$1:$B$65="R"),Fichier!$C$1:$C$65,"")) -> 1490 | F8: =SUMPRODUCT((Temps!$C$1:$C$170014=$C8)*(Temps!$D$1:$D$170014=$B8),(Temps!$E$1:$E$170014)) -> 0 | G8: =SUMPRODUCT((Temps!$C$1:$C$170014=$E8)*(Temps!$D$1:$D$170014=$D8),(Temps!$E$1:$E$170014)) -> 0.359
A9: 587300SMK5109 | B9: =COUNTIFS(Fichier!$A$1:$A$65,$A9,Fichier!$B$1:$B$65,"L") -> 1 | C9: =MAX(IF((Fichier!$A$1:$A$65=$A9)*(Fichier!$B$1:$B$65="L"),Fichier!$C$1:$C$65,"")) -> 240 | D9: =COUNTIFS(Fichier!$A$1:$A$65,$A9,Fichier!$B$1:$B$65,"R") -> 2 | E9: =MAX(IF((Fichier!$A$1:$A$65=$A9)*(Fichier!$B$1:$B$65="R"),Fichier!$C$1:$C$65,"")) -> 1960 | F9: =SUMPRODUCT((Temps!$C$1:$C$170014=$C9)*(Temps!$D$1:$D$170014=$B9),(Temps!$E$1:$E$170014)) -> 0 | G9: =SUMPRODUCT((Temps!$C$1:$C$170014=$E9)*(Temps!$D$1:$D$170014=$D9),(Temps!$E$1:$E$170014)) -> 0.364
A10: 587305VMK2133 | B10: =COUNTIFS(Fichier!$A$1:$A$65,$A10,Fichier!$B$1:$B$65,"L") -> 1 | C10: =MAX(IF((Fichier!$A$1:$A$65=$A10)*(Fichier!$B$1:$B$65="L"),Fichier!$C$1:$C$65,"")) -> 160 | D10: =COUNTIFS(Fichier!$A$1:$A$65,$A10,Fichier!$B$1:$B$65,"R") -> 2 | E10: =MAX(IF((Fichier!$A$1:$A$65=$A10)*(Fichier!$B$1:$B$65="R"),Fichier!$C$1:$C$65,"")) -> 1740 | F10: =SUMPRODUCT((Temps!$C$1:$C$170014=$C10)*(Temps!$D$1:$D$170014=$B10),(Temps!$E$1:$E$170014)) -> 0 | G10: =SUMPRODUCT((Temps!$C$1:$C$170014=$E10)*(Temps!$D$1:$D$170014=$D10),(Temps!$E$1:$E$170014)) -> 0.364 | J10: Exemple :
A11: 587305VMK2134 | B11: =COUNTIFS(Fichier!$A$1:$A$65,$A11,Fichier!$B$1:$B$65,"L") -> 1 | C11: =MAX(IF((Fichier!$A$1:$A$65=$A11)*(Fichier!$B$1:$B$65="L"),Fichier!$C$1:$C$65,"")) -> 160 | D11: =COUNTIFS(Fichier!$A$1:$A$65,$A11,Fichier!$B$1:$B$65,"R") -> 3 | E11: =MAX(IF((Fichier!$A$1:$A$65=$A11)*(Fichier!$B$1:$B$65="R"),Fichier!$C$1:$C$65,"")) -> 1740 | F11: =SUMPRODUCT((Temps!$C$1:$C$170014=$C11)*(Temps!$D$1:$D$170014=$B11),(Temps!$E$1:$E$170014)) -> 0 | G11: =SUMPRODUCT((Temps!$C$1:$C$170014=$E11)*(Temps!$D$1:$D$170014=$D11),(Temps!$E$1:$E$170014)) -> 0.516 | J11: 587300LTL4140 | K11: L | L11: 3300
A12: 587305VMK2135 | B12: =COUNTIFS(Fichier!$A$1:$A$65,$A12,Fichier!$B$1:$B$65,"L") -> 1 | C12: =MAX(IF((Fichier!$A$1:$A$65=$A12)*(Fichier!$B$1:$B$65="L"),Fichier!$C$1:$C$65,"")) -> 160 | D12: =COUNTIFS(Fichier!$A$1:$A$65,$A12,Fichier!$B$1:$B$65,"R") -> 2 | E12: =MAX(IF((Fichier!$A$1:$A$65=$A12)*(Fichier!$B$1:$B$65="R"),Fichier!$C$1:$C$65,"")) -> 1490 | F12: =SUMPRODUCT((Temps!$C$1:$C$170014=$C12)*(Temps!$D$1:$D$170014=$B12),(Temps!$E$1:$E$170014)) -> 0 | G12: =SUMPRODUCT((Temps!$C$1:$C$170014=$E12)*(Temps!$D$1:$D$170014=$D12),(Temps!$E$1:$E$170014)) -> 0.359 | J12: 587300LTL4140 | K12: L | L12: 6400
A13: 587305VMK2136 | B13: =COUNTIFS(Fichier!$A$1:$A$65,$A13,Fichier!$B$1:$B$65,"L") -> 1 | C13: =MAX(IF((Fichier!$A$1:$A$65=$A13)*(Fichier!$B$1:$B$65="L"),Fichier!$C$1:$C$65,"")) -> 160 | D13: =COUNTIFS(Fichier!$A$1:$A$65,$A13,Fichier!$B$1:$B$65,"R") -> 2 | E13: =MAX(IF((Fichier!$A$1:$A$65=$A13)*(Fichier!$B$1:$B$65="R"),Fichier!$C$1:$C$65,"")) -> 2960 | F13: =SUMPRODUCT((Temps!$C$1:$C$170014=$C13)*(Temps!$D$1:$D$170014=$B13),(Temps!$E$1:$E$170014)) -> 0 | G13: =SUMPRODUCT((Temps!$C$1:$C$170014=$E13)*(Temps!$D$1:$D$170014=$D13),(Temps!$E$1:$E$170014)) -> 0.385 | J13: 587300LTL4140 | K13: R | L13: 7700
A14: 587305VMK2137 | B14: =COUNTIFS(Fichier!$A$1:$A$65,$A14,Fichier!$B$1:$B$65,"L") -> 2 | C14: =MAX(IF((Fichier!$A$1:$A$65=$A14)*(Fichier!$B$1:$B$65="L"),Fichier!$C$1:$C$65,"")) -> 2500 | D14: =COUNTIFS(Fichier!$A$1:$A$65,$A14,Fichier!$B$1:$B$65,"R") -> 5 | E14: =MAX(IF((Fichier!$A$1:$A$65=$A14)*(Fichier!$B$1:$B$65="R"),Fichier!$C$1:$C$65,"")) -> 2960 | F14: =SUMPRODUCT((Temps!$C$1:$C$170014=$C14)*(Temps!$D$1:$D$170014=$B14),(Temps!$E$1:$E$170014)) -> 0.372 | G14: =SUMPRODUCT((Temps!$C$1:$C$170014=$E14)*(Temps!$D$1:$D$170014=$D14),(Temps!$E$1:$E$170014)) -> 0.839 | J14: 587300LTL4140 | K14: R | L14: 7800
A15: 5873087AM5106 | B15: =COUNTIFS(Fichier!$A$1:$A$65,$A15,Fichier!$B$1:$B$65,"L") -> 3 | C15: =MAX(IF((Fichier!$A$1:$A$65=$A15)*(Fichier!$B$1:$B$65="L"),Fichier!$C$1:$C$65,"")) -> 280 | D15: =COUNTIFS(Fichier!$A$1:$A$65,$A15,Fichier!$B$1:$B$65,"R") -> 1 | E15: =MAX(IF((Fichier!$A$1:$A$65=$A15)*(Fichier!$B$1:$B$65="R"),Fichier!$C$1:$C$65,"")) -> 1240 | F15: =SUMPRODUCT((Temps!$C$1:$C$170014=$C15)*(Temps!$D$1:$D$170014=$B15),(Temps!$E$1:$E$170014)) -> 0 | G15: =SUMPRODUCT((Temps!$C$1:$C$170014=$E15)*(Temps!$D$1:$D$170014=$D15),(Temps!$E$1:$E$170014)) -> 0.208 | J15: 587300LTL4140 | K15: R | L15: 12100
A16: 5873087AM5107 | B16: =COUNTIFS(Fichier!$A$1:$A$65,$A16,Fichier!$B$1:$B$65,"L") -> 2 | C16: =MAX(IF((Fichier!$A$1:$A$65=$A16)*(Fichier!$B$1:$B$65="L"),Fichier!$C$1:$C$65,"")) -> 280 | D16: =COUNTIFS(Fichier!$A$1:$A$65,$A16,Fichier!$B$1:$B$65,"R") -> 1 | E16: =MAX(IF((Fichier!$A$1:$A$65=$A16)*(Fichier!$B$1:$B$65="R"),Fichier!$C$1:$C$65,"")) -> 1240 | F16: =SUMPRODUCT((Temps!$C$1:$C$170014=$C16)*(Temps!$D$1:$D$170014=$B16),(Temps!$E$1:$E$170014)) -> 0 | G16: =SUMPRODUCT((Temps!$C$1:$C$170014=$E16)*(Temps!$D$1:$D$170014=$D16),(Temps!$E$1:$E$170014)) -> 0.208
J17: Coté L | K17: maximum et 6400 et le Nbr est 2 .
J18: Coté R | K18: maximum et 12100 et le Nbr est 3 .
